[Event "Grand Prix Romania 1st Stage 2024"]
[Site "Bucuresti"]
[Date "2024.03.24"]
[Round "6.25"]
[White "Efroimski, Marsel"]
[Black "Lehaci, Miruna-Daria"]
[Result "1-0"]
[ECO "B31"]
[WhiteElo "2467"]
[BlackElo "2247"]
[Annotator "TA"]
[PlyCount "63"]
[EventDate "2024.03.20"]
[EventType "swiss"]
[EventCountry "ROU"]
[SourceTitle "playchess.com"]
[Source "ChessBase"]
[SourceQuality "1"]
[TimeControl "900+5"]

{[%evp 13,62,17,31,11,24,16,22,25,18,-3,6,-22,0,0,0,0,35,0,0,0,6,0,19,16,12,2,174,188,175,178,178,158,196,188,243,210,325,304,744,768,736,313,2038,2045,29979,29978,29991,29980,29993,29993,29999]} 1. Nf3 {[%emt 0:00:03]} c5 {[%emt 0:00:05]} 2. e4 {[%emt 0:00:02]} Nc6 {[%emt 0:00:03]} 3. Bb5 {[%emt 0:00:01]} g6 {[%emt 0:00:04]} 4. Bxc6 {[%emt 0:00:02]} dxc6 {[%emt 0:00:03]} 5. d3 {[%emt 0:00:06]} Bg7 {[%emt 0:00:02]} 6. h3 {[%emt 0:00:01]} e5 {[%emt 0:00:05]} 7. Be3 {[%emt 0:00:02]} Qe7 {[%emt 0:00:02]} 8. a4 {[%emt 0:00:04][%cal Ba2a4,Ba4a5][%mdl 32]} Nf6 {[%emt 0:00:06][%cal Bg8f6,Bf6d7,Bd7f8,Bf8e6][%mdl 32]} 9. a5 {[%emt 0:00:12]} Nd7 {[%emt 0:00:04]} 10. Qd2 {[%emt 0:00:14] Die Stellung ist ausgeglichen.} Nf8 {[%emt 0:01:37]} 11. Nc3 {[%emt 0:00:11]} Ne6 {[%emt 0:00:13]} 12. Na4 {[%emt 0:15:07]} b5 {[%emt 0:01:07]} 13. axb6 {[%emt 0:00:00]} axb6 {[%emt 0:00:02] [#] Droht ...b5 und aus.} 14. O-O {[%emt 0:00:00]} b5 {[%emt 0:00:35]} 15. Nc3 {[%emt 0:00:00]} Rxa1 16. Rxa1 {[%emt 0:00:00]} O-O {[%emt 0:00:17]} 17. Ne2 {[%emt 0:00:00]} Nd4 {[%emt 0:01:42]} 18. Nexd4 {[%emt 0:00:00]} cxd4 {[%emt 0:00:13]} 19. Bh6 {[%emt 0:00:00]} Be6 $2 {[%emt 0:03:43] [#] Danach kann Schwarz die Partie nicht mehr halten.} (19... Bxh6 $11 {und Schwarz ist OK.} 20. Qxh6 f6) 20. Bxg7 $18 {[%emt 0:00:00]} Kxg7 {[%emt 0:00:02]} 21. Nxe5 {[%emt 0:00:00]} c5 {[%emt 0:01:02]} 22. Nf3 {[%emt 0:00:00]} Rd8 {[%emt 0:01:01]} 23. Qa5 {[%emt 0:00:00]} Qd7 {[%emt 0:01:03]} (23... b4 $142 24. Qb6 Rd7) 24. Qb6 {[%emt 0:00:00]} c4 {[%emt 0:00:38]} (24... Qd6 $142 25. Qxd6 (25. Qxb5 Rb8 $18) 25... Rxd6) 25. Ng5 {[%emt 0:00:00]} cxd3 $2 {[%emt 0:01:25]} (25... Qe7) 26. Nxe6+ {[%emt 0:00:00]} fxe6 {[%emt 0:00:09]} 27. cxd3 {[%emt 0:00:00] KQR-KQR} (27. Ra7 $142 dxc2 28. Rxd7+ Rxd7 29. Qc6 (29. Qxb5 $2 {zu gefräßig.} c1=Q+ 30. Qf1 Qxf1+ 31. Kxf1 d3 $19)) 27... Kh6 $2 {[%emt 0:01:03]} (27... Qe7 28. b4 (28. Qxb5 Qc7 $18) 28... Kh6 29. Qxb5 Rd7) 28. Ra7 {[%emt 0:00:00]} Qd6 {[%emt 0:00:28]} 29. Qb7 {[%emt 0:00:00] Weiß setzt Matt.} Kg5 {[%emt 0:00:29]} 30. g3 {[%emt 0:00:00]} h5 {[%emt 0:00:04]} 31. f4+ {[%emt 0:00:00]} Kf6 {[%emt 0:00:02]} 32. Qf7# {[%emt 0:00:00] Gewichteter Fehlerwert: Weiß=0.30/Schwarz=0.51.  Verlustzug:     	---       	Schwarz=1     Fehler:       	---       	Schwarz=3     Ungenau:       	Weiß=2     	Schwarz=2     OK:         	Weiß=5     	Schwarz=4     Bester:       	Weiß=5     	Schwarz=1} 1-0

[Event "Grand Prix Romania 1st Stage 2024"]
[Site "Bucuresti"]
[Date "2024.03.24"]
[Round "6.26"]
[White "Zubcu, Vlad-George"]
[Black "Manolache, Marius"]
[Result "0-1"]
[ECO "B23"]
[WhiteElo "2181"]
[BlackElo "2387"]
[Annotator "RC"]
[PlyCount "66"]
[EventDate "2024.03.20"]
[EventType "swiss"]
[EventCountry "ROU"]
[SourceTitle "playchess.com"]
[Source "ChessBase"]
[SourceQuality "1"]
[TimeControl "900+5"]

1. e4 {[%emt 0:00:24]} c5 {[%emt 0:00:02]} 2. Nc3 {[%emt 0:00:03]} e6 {[%emt 0:00:06]} 3. d4 {[%emt 0:00:02]} cxd4 {[%emt 0:00:02]} 4. Qxd4 {[%emt 0:00:01]} Nc6 {[%emt 0:00:07]} 5. Qe3 {[%emt 0:00:01]} d6 {[%emt 0:00:39]} 6. b3 {[%emt 0:00:25]} Nf6 {[%emt 0:00:32]} 7. Bb2 {[%emt 0:00:11]} Be7 {[%emt 0:00:47]} 8. O-O-O {[%emt 0:01:09]} O-O {[%emt 0:00:19]} 9. f4 {[%emt 0:00:31]} d5 {[%emt 0:02:03]} 10. exd5 {[%emt 0:01:38]} exd5 {[%emt 0:00:04]} 11. Qg3 {[%emt 0:02:12]} d4 {[%emt 0:01:06]} 12. Nb5 {[%emt 0:01:27]} Qa5 {[%emt 0:00:57]} 13. a4 {[%emt 0:02:49]} Bf5 {[%emt 0:02:53]} 14. Nf3 {[%emt 0:00:38]} Ne4 {[%emt 0:00:26]} 15. Qe1 {[%emt 0:00:05]} Bb4 {[%emt 0:00:28]} 16. Qe2 {[%emt 0:00:46]} Rfe8 {[%emt 0:01:13]} 17. Ne5 {[%emt 0:00:05]} Nxe5 {[%emt 0:01:06]} 18. fxe5 {[%emt 0:00:01]} Nc3 {[%emt 0:00:24]} 19. Bxc3 {[%emt 0:00:10]} Bxc3 {[%emt 0:00:05]} 20. g4 {[%emt 0:01:17]} d3 {[%emt 0:00:23]} 21. cxd3 {[%emt 0:01:02]} Rxe5 {[%emt 0:00:03]} 22. Qc2 {[%emt 0:00:42]} Rc5 {[%emt 0:00:02]} 23. gxf5 {[%emt 0:00:27]} Bb4 {[%emt 0:00:04]} 24. Qxc5 {[%emt 0:00:25]} Bxc5 {[%emt 0:00:01]} 25. d4 {[%emt 0:00:01]} Bf8 {[%emt 0:00:14]} 26. Kb2 {[%emt 0:00:23]} a6 {[%emt 0:00:02]} 27. Nc3 {[%emt 0:00:25]} Rc8 {[%emt 0:00:08]} 28. Bc4 {[%emt 0:00:00]} b5 {[%emt 0:00:30]} 29. axb5 {[%emt 0:00:00]} Bb4 {[%emt 0:00:18]} 30. Nd5 {[%emt 0:00:06]} Ba3+ {[%emt 0:00:04]} 31. Kb1 {[%emt 0:00:07]} axb5 {[%emt 0:00:02]} 32. Bd3 {[%emt 0:00:02]} Rd8 {[%emt 0:00:07]} 33. Be4 {[%emt 0:00:07]} Rxd5 {[%emt 0:00:11]} 0-1

[Event "Grand Prix Romania 1st Stage 2024"]
[Site "Bucuresti"]
[Date "2024.03.24"]
[Round "6.27"]
[White "Baltag, Iulian"]
[Black "Maria, Lia-Alexandra"]
[Result "1-0"]
[ECO "B51"]
[WhiteElo "2412"]
[BlackElo "1996"]
[Annotator "TA"]
[PlyCount "73"]
[EventDate "2024.03.20"]
[EventType "swiss"]
[EventCountry "ROU"]
[SourceTitle "playchess.com"]
[Source "ChessBase"]
[SourceQuality "1"]
[TimeControl "900+5"]

{[%evp 9,73,12,16,8,10,18,10,5,23,29,18,6,32,0,0,0,0,-28,-25,-34,0,-16,0,0,25,-1,54,10,15,12,13,29,52,41,46,41,66,47,183,165,220,163,197,169,330,310,331,332,364,354,544,439,451,389,683,670,648,669,764,723,921,856,1571,1530,1749,1745]} 1. e4 {[%emt 0:00:01]} c5 {[%emt 0:00:03]} 2. Nf3 {[%emt 0:00:02]} d6 {[%emt 0:00:02]} 3. Bb5+ {[%emt 0:00:08]} Nd7 {[%emt 0:00:02]} 4. Ba4 {[%emt 0:00:07]} Ngf6 {[%emt 0:00:09]} 5. O-O {[%emt 0:00:06]} g6 {[%emt 0:00:45]} 6. d3 {[%emt 0:00:02]} Bg7 {[%emt 0:00:02]} 7. c4 {[%emt 0:00:01]} O-O {[%emt 0:00:03]} 8. Nc3 {[%emt 0:00:02] The position is equal.} a6 {[%emt 0:00:10]} 9. h3 {[%emt 0:00:03]} Rb8 {[%emt 0:00:09]} 10. Rb1 {[%emt 0:00:07]} b6 {[%emt 0:00:43]} 11. d4 {[%emt 0:01:30]} cxd4 {[%emt 0:00:37]} 12. Nxd4 {[%emt 0:00:02] Nc6 is the strong threat.} Bb7 {[%emt 0:00:21]} 13. Re1 {[%emt 0:01:52]} e6 {[%emt 0:02:59]} 14. Bg5 {[%emt 0:02:06][%cal Bc1g5,Bg5h4,Bh4g3,Bg3f2,Bf2b6][%mdl 32]} Qc7 {[%emt 0:00:26]} 15. Rc1 {[%emt 0:00:28]} h6 {[%emt 0:03:04]} 16. Bh4 {[%emt 0:00:20]} Kh7 {[%emt 0:00:14]} 17. Bg3 {[%emt 0:00:49][%cal Od4e6]} Ne8 {[%emt 0:01:35]} ({Black should try} 17... Ne5 $11) 18. f4 {[%emt 0:01:37]} Nef6 {[%emt 0:00:58]} 19. Bf2 {[%emt 0:01:02]} Nc5 {[%emt 0:01:00]} (19... Nh5 {is interesting.} 20. f5 Nc5 21. Bc2 Rbe8) 20. Bc2 {[%emt 0:00:05]} Rfd8 {[%emt 0:00:51]} (20... e5 21. fxe5 dxe5 22. Nf3 $14) 21. b4 {[%emt 0:00:22][%cal Of4f5]} Ncd7 {[%emt 0:00:01]} 22. Bd3 {[%emt 0:00:03][%cal Oc3d5]} Nf8 {[%emt 0:00:21]} 23. Nb3 {[%emt 0:00:46] White is more active.} Qd7 {[%emt 0:00:09] This costs Black the game.} (23... Nh5 $14) 24. Bxb6 $18 {[%emt 0:00:13]} Rdc8 {[%emt 0:00:17]} (24... Re8 $142) 25. Bf2 {[%emt 0:00:05]} Nh5 {[%emt 0:00:21]} 26. Qd2 {[%emt 0:00:15]} d5 $2 {[%emt 0:00:59] [#]} (26... e5 {might work better.} 27. fxe5 Bxe5) 27. cxd5 {[%emt 0:00:26]} Bxc3 {[%emt 0:00:13]} 28. Rxc3 {[%emt 0:00:07]} Rxc3 {[%emt 0:00:09]} 29. Qxc3 {[%emt 0:00:01]} (29. Nc5 Rxc5 30. Bxc5 exd5 31. exd5 Bxd5 $17) 29... Nxf4 {[%emt 0:00:17] Black is weak on the dark squares} (29... exd5 {was necessary.} 30. Nc5 Qc7 31. exd5 (31. Bxa6 Bxa6 32. Bd4 Rc8 $11) 31... Bxd5) 30. Nc5 {[%emt 0:00:21]} Qe7 {[%emt 0:00:03]} 31. Qe5 {[%emt 0:00:20]} ({But not} 31. Bxa6 Bxa6 32. Nxa6 Rd8 $18) ({Weaker is} 31. Nxa6 Qg5 32. Bf1 Bxa6 $16) 31... Nxd3 $2 {[%emt 0:00:12]} (31... Qg5 32. Qxg5 (32. Qxb8 $2 Qxg2#) 32... hxg5 33. Bxa6 Bxa6 34. Nxa6 Rd8) 32. Qxb8 {[%emt 0:00:12] White is clearly winning.} Nxe1 {[%emt 0:00:12]} 33. Bxe1 {[%emt 0:00:32]} ({Less strong is} 33. Nxb7 Nd3 $18) 33... exd5 {[%emt 0:00:08]} 34. Qxb7 {[%emt 0:00:08]} Qf6 {[%emt 0:00:02]} 35. Qxd5 {[%emt 0:00:08]} Kg7 {[%emt 0:00:02]} 36. Qd3 {[%emt 0:00:04][%cal Oe1c3] [#] Bc3! would kill now.} Kh7 {[%emt 0:00:04]} 37. Bc3 {[%emt 0:00:02] Weighted Error Value: White=0.22 (precise) /Black=0.42.  Mistake:       	---       	Black=6      Inaccurate:     	White=4     	Black=2      OK:         	White=7     	Black=9      Best:        	White=2     	Black=3} 1-0

[Event "Grand Prix Romania 1st Stage 2024"]
[Site "Bucuresti"]
[Date "2024.03.24"]
[Round "6.28"]
[White "Cebotari, Stanislav"]
[Black "Ben Ari, Yannay"]
[Result "0-1"]
[ECO "A07"]
[WhiteElo "2075"]
[BlackElo "2434"]
[Annotator "TA"]
[PlyCount "82"]
[EventDate "2024.03.20"]
[EventType "swiss"]
[EventCountry "ROU"]
[SourceTitle "playchess.com"]
[Source "ChessBase"]
[SourceQuality "1"]
[TimeControl "900+5"]

{[%evp 14,82,0,0,0,0,0,0,0,-27,0,0,0,0,0,0,0,0,0,0,0,0,0,-15,-16,-97,-73,-72,-94,-153,-160,-167,-150,-204,-204,-201,-199,-195,-182,-204,-199,-207,-212,-206,-168,-198,-188,-286,-270,-282,-286,-295,-278,-352,-318,-446,-245,-475,-468,-500,-497,-509,-498,-491,-483,-731,-679,-701,-612,-855,-796]} 1. Nf3 {[%emt 0:00:01]} Nf6 {[%emt 0:00:04]} 2. g3 {[%emt 0:00:01]} g6 {[%emt 0:00:02]} 3. Bg2 {[%emt 0:00:01]} Bg7 {[%emt 0:00:01]} 4. O-O {[%emt 0:00:01]} O-O {[%emt 0:00:02]} 5. d3 {[%emt 0:00:01]} d5 {[%emt 0:00:06]} 6. Nbd2 {[%emt 0:00:02]} Nc6 {[%emt 0:00:12]} 7. e4 {[%emt 0:00:02]} e5 {[%emt 0:00:09]} 8. Re1 {[%emt 0:00:02]} a5 {[%emt 0:00:27]} 9. a4 {[%emt 0:00:06]} h6 {[%emt 0:00:14]} 10. c3 {[%emt 0:00:44]} Re8 {[%emt 0:00:16] The position is equal.} 11. Qc2 {[%emt 0:00:01]} b6 {[%emt 0:00:53]} 12. exd5 {[%emt 0:02:17]} Nxd5 {[%emt 0:00:04]} 13. Nc4 {[%emt 0:00:29]} Bb7 {[%emt 0:00:51]} 14. Bd2 {[%emt 0:00:17]} Qd7 {[%emt 0:00:25]} 15. Re2 {[%emt 0:00:15]} Re7 {[%emt 0:01:21]} 16. Rae1 {[%emt 0:00:29]} Rae8 {[%emt 0:00:04]} 17. Qb3 {[%emt 0:01:14]} Kh7 {[%emt 0:01:57]} 18. Nh4 {[%emt 0:02:14]} Ba6 {[%emt 0:05:02]} 19. Na3 {[%emt 0:02:46] [#]} (19. Nf3 $11 {keeps the balance.}) 19... Ndb4 $1 {[%emt 0:02:18] Black continues to play with concentration.} 20. cxb4 {[%emt 0:02:14] Bxc6 would now be deadly.} Nd4 {[%emt 0:02:17]} 21. Qd5 {[%emt 0:01:26]} (21. Qd1 $142 Nxe2+ 22. Qxe2 axb4 23. Nb5 (23. Bxb4 $2 {is the wrong capture.} c5 $17)) 21... Nxe2+ $17 {[%emt 0:00:00]} 22. Rxe2 {[%emt 0:00:01] Strongly threatening Qxd7.} Bxd3 {[%emt 0:00:00]} 23. Re1 {[%emt 0:00:23]} (23. Re3 $17 e4 24. Qxd7 Rxd7 25. bxa5 Bxb2 26. Rxd3 Rxd3 27. Nc4) 23... e4 $19 {[%emt 0:00:00]} 24. Qxd7 Rxd7 {[%emt 0:00:00]} 25. bxa5 {[%emt 0:00:42]} Bxb2 {[%emt 0:00:00]} 26. Bc1 {[%emt 0:00:37] [#]} Bc3 {[%emt 0:00:00][%mdl 1024] Black has strong compensation.} 27. Rd1 {[%emt 0:00:02]} bxa5 {[%emt 0:00:00]} ({Don't play} 27... Bxa5 28. Bf1) 28. Bh3 {[%emt 0:00:15]} Rdd8 {[%emt 0:00:00]} 29. Ng2 {[%emt 0:00:21]} Bb5 {[%emt 0:00:00]} 30. Rxd8 {[%emt 0:00:12]} (30. Bg4 $142 Bxa4 31. Rf1) 30... Rxd8 {[%emt 0:00:00]} 31. Ne3 {[%emt 0:00:01] Wards off Rd1+} Bxa4 {[%emt 0:00:01]} 32. Bf1 {[%emt 0:00:01]} Bb3 {[%emt 0:00:18]} 33. Bc4 {[%emt 0:00:11]} a4 {[%emt 0:00:10]} 34. Be2 {[%emt 0:00:15]} (34. Nb1 $142 Ba5 35. Bxb3 axb3 36. Kf1) 34... c5 {[%emt 0:00:05]} (34... Bd2 $142 35. Bxd2 Rxd2) 35. Nb5 $2 {[%emt 0:00:06]} (35. Kf1) 35... Bd2 {[%emt 0:00:19] Black is clearly winning.} 36. Bxd2 {[%emt 0:00:07]} Rxd2 {[%emt 0:00:01]} 37. Bc4 {[%emt 0:00:01]} Kg7 {[%emt 0:00:11]} 38. Kg2 {[%emt 0:00:08]} h5 {[%emt 0:00:01]} 39. h4 {[%emt 0:00:01]} (39. Kg1 $142) 39... Rb2 {[%emt 0:00:06] And now ...Bxc4 would win.} 40. Na3 {[%emt 0:00:07]} f5 {[%emt 0:00:08]} 41. Nd5 {[%emt 0:00:09]} Ra2 {[%emt 0:00:02] Weighted Error Value: White=0.47/Black=0.15 (very precise) .  Mistake:       	White=7     	Black=1      Inaccurate:     	White=1     	Black=1      OK:         	White=12    	Black=11     Best:        	---       	Black=5} 0-1

[Event "Grand Prix Romania 1st Stage 2024"]
[Site "Bucuresti"]
[Date "2024.03.24"]
[Round "6.29"]
[White "Banzea, Alexandru-Bogdan"]
[Black "Leu, Dragos Stefan"]
[Result "1-0"]
[ECO "D00"]
[WhiteElo "2394"]
[BlackElo "1908"]
[Annotator "TA"]
[PlyCount "93"]
[EventDate "2024.03.20"]
[EventType "swiss"]
[EventCountry "ROU"]
[SourceTitle "playchess.com"]
[Source "ChessBase"]
[SourceQuality "1"]
[TimeControl "900+5"]

{[%evp 9,93,0,0,0,15,14,13,0,2,-50,-55,-48,-15,-31,12,9,15,-14,164,158,157,152,144,89,95,116,201,187,198,200,210,208,282,269,265,258,262,259,341,338,337,345,311,293,491,264,509,504,786,783,775,465,808,805,1008,884,1383,1366,1366,1406,1236,1155,2783,2409,2685,2291,2286,2157,8745,6737,29974,29975,29980,29981,29984,29984,29984,29984,29986,29987,29987,29988,29988,29989,29990,29991]} 1. d4 {[%emt 0:00:02]} Nf6 {[%emt 0:00:01]} 2. Nc3 {[%emt 0:00:01]} d5 {[%emt 0:00:05]} 3. Bf4 {[%emt 0:00:02]} g6 {[%emt 0:00:01]} 4. e3 {[%emt 0:00:02]} Bg7 {[%emt 0:00:01]} 5. h4 {[%emt 0:00:01]} h5 {[%emt 0:00:09]} 6. Nf3 {[%emt 0:00:02]} O-O {[%emt 0:00:03][%cal Oc7c5]} 7. Ne5 {[%emt 0:00:01]} c5 {[%emt 0:00:19]} 8. dxc5 {[%emt 0:00:02] The position is equal.} Nc6 {[%emt 0:00:36]} 9. Nxc6 {[%emt 0:00:03]} ({White should try} 9. Qd2 $11) 9... bxc6 $15 {[%emt 0:00:01]} 10. Be5 {[%emt 0:00:03]} Qa5 {[%emt 0:03:58]} (10... Bh6 $5) 11. Qd4 {[%emt 0:00:04]} Ne8 {[%emt 0:00:32][%cal Bf6e8,Be8g7,Bg7f5][%mdl 32]} 12. Bxg7 {[%emt 0:00:43]} Nxg7 {[%emt 0:00:01]} 13. b4 {[%emt 0:00:02] [#]} e5 $2 {[%emt 0:02:44]} 14. bxa5 $18 {[%emt 0:00:15]} (14. Qxe5 Qxb4 15. Qd4 Qa5 $11) 14... exd4 {[%emt 0:00:01]} 15. exd4 {[%emt 0:00:02]} Re8+ {[%emt 0:00:12]} 16. Kd2 {[%emt 0:00:09]} (16. Be2 $142) 16... Nf5 {[%emt 0:00:33]} 17. Ne2 {[%emt 0:01:29]} Ba6 {[%emt 0:00:10]} (17... Rb8 $16 {is a better defense.}) 18. Ng3 {[%emt 0:00:24]} Bxf1 {[%emt 0:00:37]} 19. Nxf5 {[%emt 0:00:16] Threatens to win with Nd6.} Bxg2 {[%emt 0:04:38] [#]} 20. Rhg1 {[%emt 0:00:01]} gxf5 {[%emt 0:00:50]} 21. Rxg2+ {[%emt 0:00:02][%mdl 4096] Endgame. KRR-KRR} Kh7 {[%emt 0:00:18]} 22. f3 {[%emt 0:01:23] Against Re4} Rab8 {[%emt 0:00:43]} 23. a3 {[%emt 0:01:35] Prevents Rb4.} Rb5 {[%emt 0:00:15]} 24. Rag1 {[%emt 0:00:08]} Rxa5 {[%emt 0:00:09]} 25. Rg7+ {[%emt 0:00:02]} Kh6 {[%emt 0:00:04]} 26. Rxf7 {[%emt 0:00:26] Hoping for Rf6+.} Rxa3 $2 {[%emt 0:00:08]} (26... Ra4 27. Rf6+ (27. Rxf5 Rxd4+ 28. Kc3 Rxh4 $16) 27... Kh7) 27. Rf6+ {[%emt 0:01:09]} ({Less strong is} 27. Rxf5 Ra4 28. Kd3 Ra3+ 29. c3 Ra2 $18) 27... Kh7 {[%emt 0:00:00]} 28. Rxf5 {[%emt 0:00:06][%cal Rf5h5]} Re6 {[%emt 0:00:08]} (28... Kh6 $142 29. Rf6+ Kh7) 29. Rxh5+ {[%emt 0:02:16]} Rh6 {[%emt 0:00:01]} 30. Rxh6+ Kxh6 {[%emt 0:00:00] KR-KR} 31. Re1 {[%emt 0:01:02]} Rxf3 {[%emt 0:00:16]} 32. Re6+ {[%emt 0:00:09]} Kh5 {[%emt 0:00:01]} 33. Rxc6 {[%emt 0:00:02]} Rf4 {[%emt 0:00:08]} 34. c3 {[%emt 0:00:25]} Rf2+ {[%emt 0:00:06]} 35. Ke3 {[%emt 0:00:06]} Rc2 {[%emt 0:00:02]} 36. Kd3 {[%emt 0:00:02]} Rf2 {[%emt 0:00:08]} 37. Rd6 {[%emt 0:00:04]} Rf3+ {[%emt 0:00:03]} 38. Kd2 {[%emt 0:00:06]} Rf5 {[%emt 0:00:01]} 39. c6 {[%emt 0:00:08] c7 would kill now.} Rf8 {[%emt 0:00:10]} 40. Rxd5+ {[%emt 0:00:06] White mates.} Kxh4 {[%emt 0:00:12]} 41. Rd7 {[%emt 0:00:25]} a5 {[%emt 0:00:00]} 42. d5 {[%emt 0:00:07]} a4 {[%emt 0:00:03]} 43. Ra7 {[%emt 0:00:10]} Rf5 {[%emt 0:00:06]} 44. Rxa4+ {[%emt 0:00:04]} Kg3 {[%emt 0:00:03]} 45. Rd4 {[%emt 0:00:09]} Rf2+ {[%emt 0:00:04]} 46. Kd3 {[%emt 0:00:04]} Kf3 {[%emt 0:00:05]} 47. c7 {[%emt 0:00:08] Weighted Error Value: White=0.09 (flawless) /Black=0.45.  Loses game:     	---       	Black=1      Mistake:       	White=2     	Black=3      Inaccurate:     	White=1     	Black=4      OK:         	White=8     	Black=7      Best:        	White=6     	Black=1} 1-0

[Event "Grand Prix Romania 1st Stage 2024"]
[Site "Bucuresti"]
[Date "2024.03.24"]
[Round "6.30"]
[White "Chuchukova, Stefani"]
[Black "Ghimpu, Samuel-Timotei"]
[Result "0-1"]
[ECO "D00"]
[WhiteElo "1883"]
[BlackElo "2467"]
[Annotator "TA"]
[PlyCount "70"]
[EventDate "2024.03.20"]
[EventType "swiss"]
[EventCountry "ROU"]
[SourceTitle "playchess.com"]
[Source "ChessBase"]
[SourceQuality "1"]
[TimeControl "900+5"]

{[%evp 9,70,-27,-25,-67,-64,-79,-87,-76,-58,-93,-103,-99,-94,-275,-162,-148,-106,-135,-162,-653,-643,-929,-924,-877,99,123,164,0,92,90,88,74,141,149,173,166,157,139,153,127,195,159,151,55,58,58,58,54,329,0,0,0,0,-1028,-1025,-1025,-990,-998,-941,-1168,-1141,-29990,-7112]} 1. d4 {[%emt 0:00:43]} Nf6 {[%emt 0:00:08]} 2. Bg5 {[%emt 0:00:02]} d5 {[%emt 0:00:06]} 3. Bxf6 {[%emt 0:00:02]} gxf6 {[%emt 0:00:03]} 4. c4 {[%emt 0:00:04]} e5 {[%emt 0:00:19]} 5. dxe5 {[%emt 0:00:25]} d4 {[%emt 0:00:02]} (5... fxe5 $6 6. cxd5 b5 7. e3 $16) 6. Nf3 {[%emt 0:00:23]} Nc6 {[%emt 0:00:21]} 7. exf6 {[%emt 0:00:22]} Qxf6 {[%emt 0:00:04]} 8. Nbd2 {[%emt 0:00:24] Black is better.} Bf5 {[%emt 0:00:24][%mdl 1024] ...0-0-0 is the strong threat. Black has strong compensation.} 9. a3 {[%emt 0:00:12]} O-O-O $1 {[%emt 0:00:13] White must now prevent ...Bh6.} 10. g3 {[%emt 0:00:39]} Re8 $1 {[%emt 0:00:50]} 11. Nb3 $2 {[%emt 0:01:18]} (11. Bg2 $17 {was worth a try.}) 11... Bg4 {[%emt 0:09:16]} (11... d3 $142 12. e3 Bh6 (12... Qxb2 13. Bxd3 Qc3+ 14. Ke2 $17)) 12. Ng1 $19 {[%emt 0:01:23]} Bg7 {[%emt 0:04:19][%cal Od4d3] Black is much more active. The white rooks are passive. This pair of bishops is nice.} 13. Bh3 {[%emt 0:01:47]} h5 {[%emt 0:00:00] Strongly threatening ...Ne5.} 14. Qd3 $2 {[%emt 0:00:40]} (14. Kf1) 14... Ne5 {[%emt 0:00:00]} 15. Qxd4 {[%emt 0:07:56]} Nf3+ {[%emt 0:00:00]} 16. Nxf3 {[%emt 0:00:00]} Qxf3 $2 {[%emt 0:00:00]} (16... Bxh3 17. Qxf6 Bxf6 18. Nfd4 $11) (16... Rxe2+ $1 $19 17. Kf1 Qxf3 (17... Bxh3+ $2 18. Kxe2 Re8+ 19. Qe3 $19)) 17. Bxg4+ $1 $16 {[%emt 0:00:00]} hxg4 {[%emt 0:00:00][%csl Ge8][%cal Rf3e2] [#]} 18. O-O-O $2 {[%emt 0:00:00]} (18. O-O $1 $18 Bxd4 (18... Qxb3 $2 19. Qxg4+ Kb8 20. Qxg7 $18) 19. exf3 Bxb2 20. Ra2) 18... Bxd4 {[%emt 0:00:05]} (18... Bh6+ $1 $11 19. Kb1 Qxb3 20. Qxa7 c6 (20... Rxe2 21. Qa8#) 21. Qa8+ Kc7 22. Qa5+ Kc8 (22... Kb8 23. Rd7 $11) 23. Qa8+ Kc7 24. Qa5+ Kc8 (24... Kb8 25. Rd7 $11) 25. Qa8+) 19. exf3 {[%emt 0:00:00]} Bxf2 {[%emt 0:00:03]} 20. fxg4 {[%emt 0:00:00]} Re2 {[%emt 0:00:03]} (20... Re4 $142) 21. Kb1 {[%emt 0:00:00]} b6 {[%emt 0:00:09]} 22. Nc1 {[%emt 0:00:00]} Re4 {[%emt 0:00:01]} 23. Nd3 {[%emt 0:00:00]} Bd4 {[%emt 0:00:01]} 24. Nf4 {[%emt 0:00:00]} c5 {[%emt 0:00:12]} (24... Be5 $16 {was called for.}) 25. Rdf1 {[%emt 0:00:00]} Re3 {[%emt 0:00:14]} 26. Nd5 {[%emt 0:00:00]} (26. Rfg1 $16) 26... Rb3 $14 {[%emt 0:00:07]} 27. Rxf7 {[%emt 0:00:00]} Rxb2+ {[%emt 0:00:02]} 28. Kc1 {[%emt 0:00:00]} Re8 {[%emt 0:00:11][%mdl 8192] Dodges Re1} (28... Rbxh2 $14 29. Rxh2 Rxh2) 29. Rxa7 $2 {[%emt 0:00:00]} ({White must play} 29. Ne7+ $18 Kd7 30. Re1 Rxh2 31. Nc6+ Kxc6 32. Rxe8) 29... Ree2 $11 {[%emt 0:00:04]} 30. Rf1 {[%emt 0:00:00] White wants to mate with Rf8+.} Rbc2+ {[%emt 0:00:03]} 31. Kd1 $2 {[%emt 0:00:00][%mdl 8192]} (31. Kb1 $11 Rb2+ 32. Kc1) 31... Red2+ $19 {[%emt 0:00:02]} 32. Ke1 {[%emt 0:00:00]} Bf2+ {[%emt 0:00:01]} 33. Rxf2 {[%emt 0:00:00]} Rxf2 {[%emt 0:00:01]} 34. h4 {[%emt 0:00:00]} Rh2 {[%emt 0:00:05][%cal Rh2h1]} 35. Kd1 {[%emt 0:00:00]} Ra2 {[%emt 0:00:01] Weighted Error Value: White=1.16/Black=0.48.  Loses game:     	White=2     	Black=1      Missed win:     	White=2     	---        Mistake:       	White=2     	Black=4      Inaccurate:     	White=1     	---        OK:         	White=6     	Black=8      Best:        	White=3     	Black=4      Strong:       	---       	Black=2} (35... Rxc4 $2 {too greedy.} 36. Nxb6+ Kb8 37. Ra8+ Kb7 38. Nxc4 $18) (35... Kb8 $142 36. Re7 Ra2 (36... Rxc4 $2 37. Nf4 $19) 37. Re8+ Kb7 38. Re7+ Ka6 39. Re2 Raxe2 (39... Rhxe2 {gets mated.} 40. Nc3 Rad2+ 41. Kc1 Rc2+ 42. Kd1 Rh2 43. Ne4 Ra2 44. Nf2 Rhxf2 45. Ke1 Rfb2 46. h5 Rb1#) 40. Nf4 Rd2+ (40... Ra2 {is a self mate.} 41. Nd3 Rad2+ 42. Kc1 Rxd3 43. h5 Rf3 44. g5 Rf1#) 41. Ke1 Ra2 42. Ne2 Rhxe2+ 43. Kd1 Rg2 44. h5 Rg1#) 0-1